[Event "Live Chess"]
[Site "Chess.com"]
[Date "2023.05.21"]
[Round "-"]
[White "stevochess11"]
[Black "tpm07"]
[Result "0-1"]
[WhiteElo "1665"]
[BlackElo "1965"]
[TimeControl "300"]
[EndTime "8:01:03 PDT"]
[Termination "tpm07 won by resignation"]

1. d4 {[%clk 0:04:57.8]} 1... Nf6 {[%clk 0:04:58]} 2. Nf3 {[%clk 0:04:56.9]}
2... d5 {[%clk 0:04:56]} 3. e3 {[%clk 0:04:55.2]} 3... g6 {[%clk 0:04:54]} 4.
Bd3 {[%clk 0:04:52.6]} 4... Bg7 {[%clk 0:04:53.1]} 5. Nbd2 {[%clk 0:04:51.7]}
5... c5 {[%clk 0:04:51.6]} 6. c3 {[%clk 0:04:50.8]} 6... b6 {[%clk 0:04:48.2]}
7. Ne5 {[%clk 0:04:50.1]} 7... O-O {[%clk 0:04:46.4]} 8. f4 {[%clk 0:04:49]}
8... Bb7 {[%clk 0:04:45.3]} 9. O-O {[%clk 0:04:48]} 9... Ne4 {[%clk 0:04:41.4]}
10. Ndf3 {[%clk 0:04:41.9]} 10... f6 {[%clk 0:04:35.9]} 11. Ng4 {[%clk 0:04:36]}
11... Qd7 {[%clk 0:04:30.8]} 12. Nf2 {[%clk 0:04:32.4]} 12... Nxf2 {[%clk
0:04:26.7]} 13. Rxf2 {[%clk 0:04:32.3]} 13... Nc6 {[%clk 0:04:24.6]} 14. Qc2
{[%clk 0:04:27.7]} 14... e5 {[%clk 0:04:21.5]} 15. fxe5 {[%clk 0:04:24.5]} 15...
fxe5 {[%clk 0:04:20.7]} 16. dxe5 {[%clk 0:04:18.2]} 16... Nxe5 {[%clk
0:04:12.7]} 17. Nxe5 {[%clk 0:04:13.7]} 17... Bxe5 {[%clk 0:04:12.1]} 18. Rxf8+
{[%clk 0:04:10.5]} 18... Rxf8 {[%clk 0:04:09.5]} 19. Bd2 {[%clk 0:04:07.7]}
19... Qg4 {[%clk 0:03:50.6]} 20. Be1 {[%clk 0:03:59.4]} 20... Qh5 {[%clk
0:03:14.8]} 21. h3 {[%clk 0:03:47.1]} 21... Qg5 {[%clk 0:03:12.6]} 22. Rd1
{[%clk 0:03:37.2]} 22... Bc8 {[%clk 0:03:02.5]} 23. h4 {[%clk 0:03:23.2]} 23...
Qxe3+ {[%clk 0:02:54.5]} 24. Kh1 {[%clk 0:03:18.3]} 24... Qf4 {[%clk 0:02:22.6]}
25. g3 {[%clk 0:03:06.6]} 25... Qg4 {[%clk 0:02:16.4]} 26. Rd2 {[%clk
0:02:56.8]} 26... d4 {[%clk 0:02:12.9]} 27. cxd4 {[%clk 0:02:33.8]} 27... Bb7+
{[%clk 0:02:05.7]} 28. Kg1 {[%clk 0:02:27.2]} 28... Bxd4+ {[%clk 0:01:59.9]} 29.
Bf2 {[%clk 0:02:26.2]} 29... Qxg3+ {[%clk 0:01:49.5]} 30. Kf1 {[%clk 0:02:23]}
30... Qh3+ {[%clk 0:01:30.6]} 31. Ke1 {[%clk 0:02:21.1]} 31... Qh1+ {[%clk
0:01:26.7]} 32. Bf1 {[%clk 0:02:18.5]} 32... Re8+ {[%clk 0:01:20]} 33. Re2
{[%clk 0:02:13.2]} 33... Bxf2+ {[%clk 0:01:16.1]} 34. Kxf2 {[%clk 0:02:10.9]}
34... Qxh4+ {[%clk 0:01:11.4]} 35. Kg1 {[%clk 0:02:07]} 35... Rxe2 {[%clk
0:00:59.7]} 36. Qxe2 {[%clk 0:02:00.9]} 36... Qg3+ {[%clk 0:00:51.5]} 37. Bg2
{[%clk 0:01:59.4]} 37... Qxg2+ {[%clk 0:00:50.3]} 38. Qxg2 {[%clk 0:01:58.2]}
38... Bxg2 {[%clk 0:00:49.8]} 39. Kxg2 {[%clk 0:01:58.1]} 39... Kf7 {[%clk
0:00:49.3]} 0-1

[Event "Live Chess"]
[Site "Chess.com"]
[Date "2023.05.21"]
[Round "-"]
[White "LaupMiths"]
[Black "Tema1107"]
[Result "1-0"]
[WhiteElo "1818"]
[BlackElo "1934"]
[TimeControl "300"]
[EndTime "8:01:05 PDT"]
[Termination "LaupMiths won on time"]

1. d4 {[%clk 0:04:56]} 1... Nf6 {[%clk 0:04:57.3]} 2. Nf3 {[%clk 0:04:54.2]}
2... e6 {[%clk 0:04:56.5]} 3. c4 {[%clk 0:04:50.9]} 3... Bb4+ {[%clk 0:04:53.9]}
4. Bd2 {[%clk 0:04:46.2]} 4... c5 {[%clk 0:04:53.1]} 5. Bxb4 {[%clk 0:04:44.3]}
5... cxb4 {[%clk 0:04:53]} 6. e3 {[%clk 0:04:42.3]} 6... O-O {[%clk 0:04:51.4]}
7. Bd3 {[%clk 0:04:40.8]} 7... d6 {[%clk 0:04:45.3]} 8. O-O {[%clk 0:04:39.7]}
8... Nc6 {[%clk 0:04:42.9]} 9. Nbd2 {[%clk 0:04:35.7]} 9... e5 {[%clk
0:04:35.4]} 10. d5 {[%clk 0:04:31.8]} 10... Ne7 {[%clk 0:04:28.6]} 11. Ng5
{[%clk 0:04:23.7]} 11... h6 {[%clk 0:04:25.1]} 12. Nge4 {[%clk 0:04:22.3]} 12...
Nxe4 {[%clk 0:04:24.2]} 13. Bxe4 {[%clk 0:04:19.1]} 13... f5 {[%clk 0:04:23.4]}
14. Bc2 {[%clk 0:04:17.7]} 14... b6 {[%clk 0:04:20.7]} 15. f4 {[%clk 0:04:12]}
15... a5 {[%clk 0:03:55.1]} 16. fxe5 {[%clk 0:04:08.1]} 16... dxe5 {[%clk
0:03:55]} 17. Qh5 {[%clk 0:04:01.4]} 17... Qd6 {[%clk 0:03:50.2]} 18. Rae1
{[%clk 0:03:54.7]} 18... a4 {[%clk 0:03:42.9]} 19. b3 {[%clk 0:03:51.4]} 19...
a3 {[%clk 0:03:38.6]} 20. Kh1 {[%clk 0:03:48.1]} 20... e4 {[%clk 0:03:34.4]} 21.
g4 {[%clk 0:03:44.9]} 21... Qe5 {[%clk 0:02:49.8]} 22. gxf5 {[%clk 0:03:29.7]}
22... Bxf5 {[%clk 0:02:47.4]} 23. Rg1 {[%clk 0:03:05.9]} 23... Rae8 {[%clk
0:02:35]} 24. Qxh6 {[%clk 0:02:57]} 24... g6 {[%clk 0:01:58.4]} 25. Ref1 {[%clk
0:02:27]} 25... Rf7 {[%clk 0:01:51.8]} 26. Rf4 {[%clk 0:02:18.9]} 26... Rh7
{[%clk 0:01:48]} 27. Qg5 {[%clk 0:02:18.1]} 27... Qh8 {[%clk 0:01:10.7]} 28. Rg2
{[%clk 0:02:07.1]} 28... Rh5 {[%clk 0:01:06.8]} 29. Qg3 {[%clk 0:01:56.2]} 29...
Rh3 {[%clk 0:01:01]} 30. Qf2 {[%clk 0:01:48.9]} 30... Rf8 {[%clk 0:00:23.4]} 31.
Bxe4 {[%clk 0:01:35.7]} 31... Qe5 {[%clk 0:00:19.3]} 32. Bxf5 {[%clk 0:01:11.4]}
32... Rxf5 {[%clk 0:00:19.2]} 33. Rxf5 {[%clk 0:01:08.7]} 33... Nxf5 {[%clk
0:00:18.2]} 34. Rxg6+ {[%clk 0:01:06.6]} 34... Kh7 {[%clk 0:00:17.7]} 35. Qg2
{[%clk 0:00:58.4]} 35... Qa1+ {[%clk 0:00:12.3]} 36. Nf1 {[%clk 0:00:56.7]}
36... Rf3 {[%clk 0:00:05.6]} 37. Kg1 {[%clk 0:00:48.8]} 37... Rxf1+ {[%clk
0:00:04.4]} 38. Qxf1 {[%clk 0:00:47.6]} 38... Qxf1+ {[%clk 0:00:04.3]} 39. Kxf1
{[%clk 0:00:46.4]} 39... Kxg6 {[%clk 0:00:04.2]} 40. e4 {[%clk 0:00:45.1]} 40...
Ne3+ {[%clk 0:00:03.2]} 41. Ke2 {[%clk 0:00:40.8]} 41... Ng4 {[%clk 0:00:03.1]}
42. Kd3 {[%clk 0:00:39.2]} 42... Ne5+ {[%clk 0:00:03]} 43. Kd4 {[%clk
0:00:38.5]} 43... Kf6 {[%clk 0:00:02.9]} 44. c5 {[%clk 0:00:37.4]} 44... bxc5+
{[%clk 0:00:02.2]} 45. Kxc5 {[%clk 0:00:37.2]} 45... Ke7 {[%clk 0:00:00.8]} 46.
Kxb4 {[%clk 0:00:36.7]} 46... Kd7 {[%clk 0:00:00.7]} 47. Kxa3 {[%clk 0:00:35.9]}
47... Ng4 {[%clk 0:00:00.4]} 48. Kb4 {[%clk 0:00:35.5]} 48... Nxh2 {[%clk
0:00:00.3]} 49. Kc5 {[%clk 0:00:34.5]} 49... Nf3 {[%clk 0:00:00.2]} 50. a4
{[%clk 0:00:31.6]} 50... Ng5 {[%clk 0:00:00.1]} 51. a5 {[%clk 0:00:30.8]} 1-0

[Event "Live Chess"]
[Site "Chess.com"]
[Date "2023.05.21"]
[Round "-"]
[White "wot-not"]
[Black "f4nomore"]
[Result "1-0"]
[WhiteElo "1524"]
[BlackElo "1400"]
[TimeControl "300"]
[EndTime "8:01:05 PDT"]
[Termination "wot-not won by resignation"]

1. e4 {[%clk 0:04:52.2]} 1... g6 {[%clk 0:04:59.9]} 2. f4 {[%clk 0:04:51]} 2...
Bg7 {[%clk 0:04:59.8]} 3. Nf3 {[%clk 0:04:50.4]} 3... d6 {[%clk 0:04:59.7]} 4.
d4 {[%clk 0:04:49.9]} 4... Nd7 {[%clk 0:04:56.6]} 5. Bc4 {[%clk 0:04:48.5]} 5...
Ngf6 {[%clk 0:04:48.1]} 6. e5 {[%clk 0:04:46.9]} 6... dxe5 {[%clk 0:04:46.5]} 7.
fxe5 {[%clk 0:04:46.4]} 7... Nb6 {[%clk 0:04:36]} 8. exf6 {[%clk 0:04:30.6]}
8... Bxf6 {[%clk 0:04:31.1]} 9. Bb3 {[%clk 0:04:25]} 9... O-O {[%clk 0:04:28.5]}
10. O-O {[%clk 0:04:23.7]} 10... Bg4 {[%clk 0:04:26.1]} 11. Bh6 {[%clk
0:04:21.4]} 11... Re8 {[%clk 0:04:22.5]} 12. c3 {[%clk 0:04:07.4]} 12... c5
{[%clk 0:04:08.4]} 13. dxc5 {[%clk 0:04:01.3]} 13... Qxd1 {[%clk 0:04:05.9]} 14.
Rxd1 {[%clk 0:04:00.1]} 14... Nc8 {[%clk 0:03:51.6]} 15. Nbd2 {[%clk 0:03:57.3]}
15... a6 {[%clk 0:03:50.3]} 16. Ne4 {[%clk 0:03:55.9]} 16... Na7 {[%clk
0:03:44.1]} 17. Nxf6+ {[%clk 0:03:46.3]} 17... exf6 {[%clk 0:03:42.6]} 18. Rd7
{[%clk 0:03:44.9]} 18... Nc6 {[%clk 0:03:34.5]} 19. Rxf7 {[%clk 0:03:34]} 19...
Be6 {[%clk 0:03:22.8]} 20. Rg7+ {[%clk 0:03:30]} 20... Kh8 {[%clk 0:03:19.2]}
21. Bxe6 {[%clk 0:03:26.2]} 21... Rxe6 {[%clk 0:03:16.1]} 22. Rxb7 {[%clk
0:03:23.8]} 22... Ne5 {[%clk 0:03:03.6]} 23. Nxe5 {[%clk 0:03:22.4]} 23... Rxe5
{[%clk 0:03:01]} 24. Rd1 {[%clk 0:03:19.7]} 24... Rae8 {[%clk 0:02:58]} 25. h3
{[%clk 0:03:15.9]} 25... f5 {[%clk 0:02:52]} 26. Rdd7 {[%clk 0:03:13.5]} 26...
Re1+ {[%clk 0:02:45.1]} 27. Kh2 {[%clk 0:03:12.3]} 1-0

[Event "Live Chess"]
[Site "Chess.com"]
[Date "2023.05.21"]
[Round "-"]
[White "domrobson"]
[Black "WilliamofOrange16th"]
[Result "1-0"]
[WhiteElo "1768"]
[BlackElo "1855"]
[TimeControl "300"]
[EndTime "8:01:14 PDT"]
[Termination "domrobson won by resignation"]

1. d4 {[%clk 0:04:58]} 1... d6 {[%clk 0:04:59]} 2. e4 {[%clk 0:04:56.1]} 2...
Nf6 {[%clk 0:04:58.6]} 3. Nc3 {[%clk 0:04:54.7]} 3... Nbd7 {[%clk 0:04:57.5]} 4.
Nf3 {[%clk 0:04:52.3]} 4... e5 {[%clk 0:04:57]} 5. dxe5 {[%clk 0:04:49.4]} 5...
dxe5 {[%clk 0:04:56.9]} 6. Bc4 {[%clk 0:04:47.3]} 6... Be7 {[%clk 0:04:56]} 7.
O-O {[%clk 0:04:45.1]} 7... O-O {[%clk 0:04:55]} 8. Bg5 {[%clk 0:04:42.9]} 8...
c6 {[%clk 0:04:54.5]} 9. Qd2 {[%clk 0:04:40.1]} 9... Qc7 {[%clk 0:04:53.8]} 10.
Rad1 {[%clk 0:04:38.1]} 10... b5 {[%clk 0:04:52.5]} 11. Bb3 {[%clk 0:04:31.6]}
11... Nc5 {[%clk 0:04:51.6]} 12. Qe3 {[%clk 0:04:26.2]} 12... Nxb3 {[%clk
0:04:48.8]} 13. axb3 {[%clk 0:04:24.9]} 13... h6 {[%clk 0:04:28.9]} 14. Bh4
{[%clk 0:04:22.6]} 14... Ng4 {[%clk 0:04:24.7]} 15. Qe2 {[%clk 0:04:11.3]} 15...
Bxh4 {[%clk 0:04:16.5]} 16. Nxh4 {[%clk 0:04:09.7]} 16... g6 {[%clk 0:04:08.1]}
17. h3 {[%clk 0:03:44.7]} 17... Nf6 {[%clk 0:04:07]} 18. Qe3 {[%clk 0:03:42]}
18... Kg7 {[%clk 0:04:05.7]} 19. Nf3 {[%clk 0:03:40.4]} 19... Be6 {[%clk
0:03:59.2]} 20. Qc5 {[%clk 0:03:36.8]} 20... Nd7 {[%clk 0:03:56.9]} 21. Qd6
{[%clk 0:03:32.3]} 21... Qxd6 {[%clk 0:03:41]} 22. Rxd6 {[%clk 0:03:30.3]} 22...
b4 {[%clk 0:03:39.7]} 23. Na4 {[%clk 0:03:26.8]} 23... c5 {[%clk 0:03:36.7]} 24.
Rfd1 {[%clk 0:03:24.1]} 24... Nb6 {[%clk 0:02:39.3]} 25. Nxc5 {[%clk 0:03:19.6]}
25... Rfe8 {[%clk 0:02:37.7]} 26. Nxe6+ {[%clk 0:03:17.6]} 26... Rxe6 {[%clk
0:02:34.1]} 27. Rxe6 {[%clk 0:03:16.5]} 27... fxe6 {[%clk 0:02:33.7]} 28. Nxe5
{[%clk 0:03:15.6]} 28... Rc8 {[%clk 0:02:31.4]} 29. Rd2 {[%clk 0:03:12.8]} 29...
Rc5 {[%clk 0:02:29.2]} 30. Nd7 {[%clk 0:03:08.4]} 30... Rc7 {[%clk 0:02:27.2]}
31. Nxb6 {[%clk 0:03:07]} 31... axb6 {[%clk 0:02:25.3]} 32. f3 {[%clk
0:03:05.9]} 32... b5 {[%clk 0:02:22.7]} 33. Kf2 {[%clk 0:03:04.9]} 33... Kf6
{[%clk 0:02:22]} 34. Ke2 {[%clk 0:03:03.3]} 34... e5 {[%clk 0:02:21.4]} 35. Kd1
{[%clk 0:03:01.3]} 35... Kg5 {[%clk 0:02:17.9]} 36. g3 {[%clk 0:02:59.3]} 36...
h5 {[%clk 0:02:16.8]} 37. h4+ {[%clk 0:02:54.1]} 37... Kf6 {[%clk 0:02:15.7]}
38. Rd6+ {[%clk 0:02:52]} 38... Kf7 {[%clk 0:02:14.9]} 39. Rd5 {[%clk 0:02:51]}
1-0

[Event "Live Chess"]
[Site "Chess.com"]
[Date "2023.05.21"]
[Round "-"]
[White "Doge_Dandolo"]
[Black "lord_cll"]
[Result "1-0"]
[WhiteElo "1866"]
[BlackElo "1206"]
[TimeControl "300"]
[EndTime "8:01:15 PDT"]
[Termination "Doge_Dandolo won by resignation"]

1. Nf3 {[%clk 0:04:57]} 1... Nf6 {[%clk 0:04:57.5]} 2. c4 {[%clk 0:04:55.6]}
2... g6 {[%clk 0:04:55]} 3. Nc3 {[%clk 0:04:54.1]} 3... Bg7 {[%clk 0:04:53]} 4.
e4 {[%clk 0:04:51.1]} 4... d6 {[%clk 0:04:50.4]} 5. d4 {[%clk 0:04:50.1]} 5...
O-O {[%clk 0:04:46.3]} 6. Be2 {[%clk 0:04:48.9]} 6... e5 {[%clk 0:04:44.4]} 7.
dxe5 {[%clk 0:04:46.8]} 7... dxe5 {[%clk 0:04:43.3]} 8. Qxd8 {[%clk 0:04:46.2]}
8... Rxd8 {[%clk 0:04:42.1]} 9. Bg5 {[%clk 0:04:45.5]} 9... Nc6 {[%clk 0:04:30]}
10. Nd5 {[%clk 0:04:43.4]} 10... Rd6 {[%clk 0:04:23.2]} 11. c5 {[%clk
0:04:39.6]} 11... Re6 {[%clk 0:04:15.6]} 12. Nxc7 {[%clk 0:04:38.4]} 12... Nxe4
{[%clk 0:04:10.2]} 13. Be3 {[%clk 0:04:28.3]} 13... Bd7 {[%clk 0:03:42.3]} 14.
Nxa8 {[%clk 0:04:23.8]} 1-0

[Event "Live Chess"]
[Site "Chess.com"]
[Date "2023.05.21"]
[Round "-"]
[White "manthanit"]
[Black "therealab0ne"]
[Result "1-0"]
[WhiteElo "1102"]
[BlackElo "745"]
[TimeControl "300"]
[EndTime "8:01:30 PDT"]
[Termination "manthanit won by resignation"]

1. e4 {[%clk 0:04:58.8]} 1... c5 {[%clk 0:04:54.8]} 2. Nf3 {[%clk 0:04:57.1]}
2... Nc6 {[%clk 0:04:50.4]} 3. Bc4 {[%clk 0:04:56.4]} 3... e6 {[%clk 0:04:49]}
4. e5 {[%clk 0:04:55.5]} 4... d6 {[%clk 0:04:43.9]} 5. exd6 {[%clk 0:04:53.4]}
5... Bxd6 {[%clk 0:04:43.1]} 6. d4 {[%clk 0:04:53]} 6... cxd4 {[%clk 0:04:40.8]}
7. Nxd4 {[%clk 0:04:52.1]} 7... Nf6 {[%clk 0:04:39]} 8. Nxc6 {[%clk 0:04:50.5]}
8... bxc6 {[%clk 0:04:38.2]} 9. Bg5 {[%clk 0:04:47.4]} 9... Be7 {[%clk
0:04:35.2]} 10. Qxd8+ {[%clk 0:04:40]} 10... Bxd8 {[%clk 0:04:33.2]} 11. O-O
{[%clk 0:04:37.4]} 11... O-O {[%clk 0:04:32.1]} 12. Nc3 {[%clk 0:04:36]} 12...
Nd5 {[%clk 0:04:21.6]} 13. Nxd5 {[%clk 0:04:31.2]} 13... cxd5 {[%clk 0:04:20.7]}
14. Bxd8 {[%clk 0:04:29]} 14... Rxd8 {[%clk 0:04:19.9]} 15. Bd3 {[%clk
0:04:26.8]} 15... Rb8 {[%clk 0:04:13.4]} 16. b3 {[%clk 0:04:24.8]} 16... Rb4
{[%clk 0:04:11.5]} 17. Rfe1 {[%clk 0:04:20]} 17... Re8 {[%clk 0:04:08.2]} 18. h3
{[%clk 0:04:18.9]} 18... e5 {[%clk 0:04:07.2]} 19. f4 {[%clk 0:04:11.7]} 19...
e4 {[%clk 0:04:02.6]} 20. Be2 {[%clk 0:04:06.8]} 20... Rd4 {[%clk 0:03:53.7]}
21. Rad1 {[%clk 0:04:04.2]} 21... Rxd1 {[%clk 0:03:52.3]} 22. Bxd1 {[%clk
0:04:02.4]} 22... Re6 {[%clk 0:03:49.9]} 23. Kf2 {[%clk 0:04:01.8]} 23... Rf6
{[%clk 0:03:48.7]} 24. Ke3 {[%clk 0:04:00.2]} 24... Kf8 {[%clk 0:03:40.7]} 25.
g4 {[%clk 0:03:58.2]} 25... Ra6 {[%clk 0:03:36.8]} 26. a4 {[%clk 0:03:56.4]}
26... Ke7 {[%clk 0:03:26.3]} 27. f5 {[%clk 0:03:54.7]} 27... Kf6 {[%clk
0:03:23.7]} 28. Kf4 {[%clk 0:03:53.6]} 28... g6 {[%clk 0:03:16.6]} 29. Be2
{[%clk 0:03:49.2]} 29... Rc6 {[%clk 0:03:06]} 30. Rc1 {[%clk 0:03:43.9]} 30...
Rc3 {[%clk 0:03:02.7]} 31. fxg6 {[%clk 0:03:33.9]} 31... Ba6 {[%clk 0:02:59.7]}
32. g5+ {[%clk 0:03:31.8]} 32... Kxg6 {[%clk 0:02:56.6]} 33. Bxa6 {[%clk
0:03:30.8]} 33... Rf3+ {[%clk 0:02:55.4]} 34. Kg4 {[%clk 0:03:27.2]} 34... f5+
{[%clk 0:02:49.7]} 35. Kh4 {[%clk 0:03:24.4]} 35... Rf4+ {[%clk 0:02:18.5]} 36.
Kg3 {[%clk 0:03:15.9]} 36... Rf3+ {[%clk 0:02:14.1]} 37. Kh4 {[%clk 0:03:13]}
37... Rf4+ {[%clk 0:02:11.6]} 38. Kg3 {[%clk 0:03:12.1]} 38... Rf3+ {[%clk
0:02:10.4]} 39. Kg2 {[%clk 0:03:08.8]} 39... Kxg5 {[%clk 0:02:05.4]} 40. Rd1
{[%clk 0:03:08.1]} 40... Kf4 {[%clk 0:01:45.8]} 41. Rxd5 {[%clk 0:03:05.7]}
41... e3 {[%clk 0:01:44.2]} 42. Bc8 {[%clk 0:03:00.6]} 42... Rf2+ {[%clk
0:01:42.3]} 43. Kg1 {[%clk 0:02:58.8]} 43... e2 {[%clk 0:01:32.6]} 44. Rxf5+
{[%clk 0:02:57.5]} 44... Ke3 {[%clk 0:01:30.9]} 45. Re5+ {[%clk 0:02:45.9]}
45... Kf3 {[%clk 0:01:26.7]} 46. Bb7+ {[%clk 0:02:42.2]} 46... Kf4 {[%clk
0:01:24.7]} 47. Re4+ {[%clk 0:02:37.4]} 47... Kf3 {[%clk 0:01:22.7]} 48. Re6+
{[%clk 0:02:21.9]} 48... Kf4 {[%clk 0:01:17.1]} 49. Rf6+ {[%clk 0:02:20.6]}
49... Ke3 {[%clk 0:01:11.3]} 50. Re6+ {[%clk 0:02:19.1]} 50... Kd2 {[%clk
0:01:07.9]} 51. Kxf2 {[%clk 0:02:17.1]} 1-0

[Event "Live Chess"]
[Site "Chess.com"]
[Date "2023.05.21"]
[Round "-"]
[White "Pablo_dmp"]
[Black "raminguy"]
[Result "0-1"]
[WhiteElo "1856"]
[BlackElo "1958"]
[TimeControl "300"]
[EndTime "8:01:33 PDT"]
[Termination "raminguy won on time"]

1. e4 {[%clk 0:04:58.6]} 1... e5 {[%clk 0:04:59.3]} 2. Nc3 {[%clk 0:04:57.5]}
2... Nc6 {[%clk 0:04:58.5]} 3. Bc4 {[%clk 0:04:55.7]} 3... Nf6 {[%clk 0:04:58]}
4. d3 {[%clk 0:04:55.3]} 4... Na5 {[%clk 0:04:57.4]} 5. Qf3 {[%clk 0:04:53.2]}
5... Nxc4 {[%clk 0:04:56.2]} 6. dxc4 {[%clk 0:04:53.1]} 6... Bb4 {[%clk
0:04:53.5]} 7. Ne2 {[%clk 0:04:50.3]} 7... h6 {[%clk 0:04:51.6]} 8. Be3 {[%clk
0:04:46.2]} 8... d6 {[%clk 0:04:49.4]} 9. h3 {[%clk 0:04:45.3]} 9... Be6 {[%clk
0:04:47.3]} 10. b3 {[%clk 0:04:43.3]} 10... O-O {[%clk 0:04:42.9]} 11. O-O
{[%clk 0:04:41.3]} 11... c6 {[%clk 0:04:34.3]} 12. a3 {[%clk 0:04:37.1]} 12...
Ba5 {[%clk 0:04:30.1]} 13. Rad1 {[%clk 0:04:29]} 13... Qe7 {[%clk 0:04:24.7]}
14. Rd3 {[%clk 0:04:22.9]} 14... Rad8 {[%clk 0:04:16.1]} 15. Rfd1 {[%clk
0:04:21.1]} 15... Bc7 {[%clk 0:03:57.6]} 16. Ng3 {[%clk 0:04:14.3]} 16... Ba5
{[%clk 0:03:48.8]} 17. Nge2 {[%clk 0:04:07.6]} 17... Bc7 {[%clk 0:03:45]} 18. g4
{[%clk 0:04:02]} 18... Nh7 {[%clk 0:03:36.6]} 19. Ng3 {[%clk 0:03:55.8]} 19...
Qh4 {[%clk 0:03:21.8]} 20. Kg2 {[%clk 0:03:50.6]} 20... Ba5 {[%clk 0:03:07.5]}
21. Nce2 {[%clk 0:03:34.9]} 21... Rd7 {[%clk 0:02:47.8]} 22. Rxd6 {[%clk
0:03:31.7]} 22... Rxd6 {[%clk 0:02:45.3]} 23. Rxd6 {[%clk 0:03:31.6]} 23... Bc7
{[%clk 0:02:32.9]} 24. Rd2 {[%clk 0:03:27.4]} 24... Ng5 {[%clk 0:02:00.5]} 25.
Bxg5 {[%clk 0:03:14.1]} 25... Qxg5 {[%clk 0:01:59.9]} 26. Rd3 {[%clk 0:03:08]}
26... a5 {[%clk 0:01:22.5]} 27. Nf5 {[%clk 0:03:04.5]} 27... a4 {[%clk
0:01:19.4]} 28. Neg3 {[%clk 0:02:43.7]} 28... Qc1 {[%clk 0:01:13.4]} 29. Nxg7
{[%clk 0:02:27.7]} 29... Kxg7 {[%clk 0:01:06.4]} 30. Nh5+ {[%clk 0:02:26.4]}
30... Kg8 {[%clk 0:01:01.1]} 31. Qf6 {[%clk 0:01:54]} 31... Qg5 {[%clk
0:00:56.8]} 32. Kg3 {[%clk 0:01:25.6]} 32... Qxf6 {[%clk 0:00:49.4]} 33. Nxf6+
{[%clk 0:01:25.5]} 33... Kg7 {[%clk 0:00:46]} 34. Nh5+ {[%clk 0:01:24.8]} 34...
Kg6 {[%clk 0:00:41.2]} 35. f4 {[%clk 0:00:57.4]} 35... exf4+ {[%clk 0:00:38.5]}
36. Nxf4+ {[%clk 0:00:57.3]} 36... Kg7 {[%clk 0:00:34.8]} 37. Kf3 {[%clk
0:00:55.1]} 37... Bc8 {[%clk 0:00:30.8]} 38. Nh5+ {[%clk 0:00:53]} 38... Kh8
{[%clk 0:00:25.9]} 39. b4 {[%clk 0:00:50.9]} 39... Rd8 {[%clk 0:00:24.3]} 40. c5
{[%clk 0:00:31.6]} 40... Rxd3+ {[%clk 0:00:22.7]} 41. cxd3 {[%clk 0:00:31.5]}
41... Be6 {[%clk 0:00:21.8]} 42. Nf4 {[%clk 0:00:26.3]} 42... Be5 {[%clk
0:00:19.7]} 43. Nxe6 {[%clk 0:00:23.7]} 43... fxe6 {[%clk 0:00:19.6]} 44. Ke3
{[%clk 0:00:18.4]} 44... Bb2 {[%clk 0:00:19.2]} 45. Kf4 {[%clk 0:00:16.8]} 45...
Kg7 {[%clk 0:00:16]} 46. h4 {[%clk 0:00:15.1]} 46... Bxa3 {[%clk 0:00:14.3]} 47.
Ke5 {[%clk 0:00:14.2]} 47... Kf7 {[%clk 0:00:12.6]} 48. Kd6 {[%clk 0:00:13.7]}
48... Bxb4 {[%clk 0:00:11.8]} 49. d4 {[%clk 0:00:13.5]} 49... a3 {[%clk
0:00:11.2]} 50. Kc7 {[%clk 0:00:12.2]} 50... a2 {[%clk 0:00:09.2]} 51. Kxb7
{[%clk 0:00:12.1]} 51... a1=Q {[%clk 0:00:08.6]} 52. Kxc6 {[%clk 0:00:12]} 52...
Qxd4 {[%clk 0:00:07.8]} 53. Kb5 {[%clk 0:00:07.7]} 53... Qxc5+ {[%clk
0:00:07.7]} 54. Ka4 {[%clk 0:00:07.3]} 54... Qc3 {[%clk 0:00:05.6]} 55. Kb5
{[%clk 0:00:06.4]} 55... Qa3 {[%clk 0:00:05.5]} 56. Kc4 {[%clk 0:00:05.3]} 56...
Qa5 {[%clk 0:00:05.4]} 57. Kb3 {[%clk 0:00:03.9]} 57... Qc5 {[%clk 0:00:04.8]}
58. Ka4 {[%clk 0:00:02.9]} 58... Bd2 {[%clk 0:00:04.5]} 59. Kb3 {[%clk
0:00:02.1]} 59... Qc3+ {[%clk 0:00:03.5]} 60. Ka2 {[%clk 0:00:00.9]} 60... Bc1
{[%clk 0:00:02.1]} 0-1

[Event "Live Chess"]
[Site "Chess.com"]
[Date "2023.05.21"]
[Round "-"]
[White "grillage"]
[Black "McSlash1"]
[Result "1-0"]
[WhiteElo "1786"]
[BlackElo "1995"]
[TimeControl "300"]
[EndTime "8:01:33 PDT"]
[Termination "grillage won by resignation"]

1. d4 {[%clk 0:04:58.9]} 1... Nf6 {[%clk 0:04:58.9]} 2. Nc3 {[%clk 0:04:57.3]}
2... d5 {[%clk 0:04:58.5]} 3. Bf4 {[%clk 0:04:55.4]} 3... g6 {[%clk 0:04:57.9]}
4. e3 {[%clk 0:04:52.9]} 4... Bg7 {[%clk 0:04:56.8]} 5. h4 {[%clk 0:04:52.4]}
5... O-O {[%clk 0:04:55.4]} 6. h5 {[%clk 0:04:49.9]} 6... gxh5 {[%clk
0:04:55.3]} 7. Nf3 {[%clk 0:04:38.9]} 7... Bg4 {[%clk 0:04:54.4]} 8. Qd2 {[%clk
0:04:37.1]} 8... c5 {[%clk 0:04:51.5]} 9. Ne5 {[%clk 0:04:35.6]} 9... Bf5 {[%clk
0:04:47.2]} 10. O-O-O {[%clk 0:04:32.2]} 10... Bg6 {[%clk 0:04:45.4]} 11. f3
{[%clk 0:04:26.2]} 11... cxd4 {[%clk 0:04:42.7]} 12. exd4 {[%clk 0:04:24.4]}
12... Nc6 {[%clk 0:04:42.3]} 13. g4 {[%clk 0:04:21]} 13... hxg4 {[%clk
0:04:40.7]} 14. fxg4 {[%clk 0:04:17.5]} 14... Nxe5 {[%clk 0:04:40.2]} 15. Bxe5
{[%clk 0:04:14.9]} 15... Nxg4 {[%clk 0:04:35.7]} 16. Bxg7 {[%clk 0:04:13.5]}
16... Kxg7 {[%clk 0:04:35.6]} 17. Be2 {[%clk 0:04:09.6]} 17... f5 {[%clk
0:04:25.5]} 18. Bxg4 {[%clk 0:04:06.8]} 18... fxg4 {[%clk 0:04:25.4]} 19. Qh6+
{[%clk 0:04:03.4]} 19... Kg8 {[%clk 0:04:24.7]} 20. Rhg1 {[%clk 0:03:57.9]}
20... Qc8 {[%clk 0:04:19.6]} 21. Rde1 {[%clk 0:03:55.5]} 21... Qf5 {[%clk
0:04:16.7]} 22. Rg2 {[%clk 0:03:47.3]} 22... e6 {[%clk 0:04:03.6]} 23. Reg1
{[%clk 0:03:39.5]} 23... Rac8 {[%clk 0:03:55.9]} 24. Qd2 {[%clk 0:03:35.8]}
24... h5 {[%clk 0:03:23.9]} 25. Nd1 {[%clk 0:03:20.2]} 25... Qe4 {[%clk
0:03:08.6]} 26. Re2 {[%clk 0:03:12.1]} 26... Qf5 {[%clk 0:03:04.2]} 27. Ne3
{[%clk 0:03:10.7]} 27... Qf3 {[%clk 0:02:56.2]} 28. Reg2 {[%clk 0:03:05.2]}
28... Rf7 {[%clk 0:02:43.7]} 29. Nxg4 {[%clk 0:03:03.4]} 29... hxg4 {[%clk
0:02:00.1]} 30. Rxg4 {[%clk 0:03:01.8]} 30... Qf1+ {[%clk 0:01:59.5]} 31. Qd1
{[%clk 0:02:49.3]} 31... Rxc2+ {[%clk 0:01:38.7]} 32. Kb1 {[%clk 0:02:48.1]}
32... Rd2+ {[%clk 0:01:35.7]} 33. Rxg6+ {[%clk 0:02:32.2]} 33... Kf8 {[%clk
0:01:34.9]} 34. Qxf1 {[%clk 0:02:27.6]} 34... Rxf1+ {[%clk 0:01:31.3]} 35. Rxf1+
{[%clk 0:02:26.8]} 35... Ke7 {[%clk 0:01:30.7]} 36. Re1 {[%clk 0:02:23.6]} 36...
Kf7 {[%clk 0:01:26.5]} 37. Rexe6 {[%clk 0:02:18.3]} 37... Rxd4 {[%clk
0:01:25.7]} 38. Rgf6+ {[%clk 0:02:17.3]} 38... Kg7 {[%clk 0:01:24.5]} 39. Rd6
{[%clk 0:02:14.1]} 39... Rd2 {[%clk 0:01:23.3]} 40. Rfe6 {[%clk 0:02:12.7]}
40... d4 {[%clk 0:01:21.6]} 41. Re7+ {[%clk 0:02:11.9]} 41... Kf8 {[%clk
0:01:19.6]} 42. Rxb7 {[%clk 0:02:11.1]} 42... Ke8 {[%clk 0:01:18.4]} 43. Rh6
{[%clk 0:02:08.7]} 1-0